bitfinex/quotes_BTCUSD_20250422
["timestamp","ask_amount","ask_price","bid_price","bid_amount"]
[1745359509937,0.08596466,92807.0,92802.0,0.001]
[1745359510160,0.10830305,92806.0,92803.0,0.005]
[1745359510552,0.10830305,92804.0,92803.0,0.005]
[1745359510723,0.10830305,92804.0,92803.0,0.006]
[1745359511324,0.10830305,92804.0,92751.0,0.0455]
[1745359511325,0.21553866,92791.0,92751.0,0.0455]
[1745359511578,0.0107776,92785.0,92738.0,0.19792]
[1745359511787,0.32385847,92784.0,92739.0,0.29193805]
[1745359511953,0.32385847,92784.0,92740.0,0.111542]
[1745359512152,0.33198207,92784.0,92741.0,0.10830305]
[1745359512390,0.11642665,92784.0,92743.0,0.01078248]
[1745359512599,0.11642665,92784.0,92744.0,0.25240005]
[1745359512819,0.11642665,92784.0,92745.0,0.307926]
[1745359512820,0.08596466,92783.0,92745.0,0.307926]
[1745359512976,0.10830305,92782.0,92745.0,0.216058]
[1745359513139,0.01077806,92781.0,92746.0,0.177308]
[1745359513345,0.10830305,92780.0,92745.0,0.10371]
[1745359513545,0.21561102,92760.0,92743.0,0.005]
[1745359513760,0.21561102,92760.0,92741.0,0.00046215]
[1745359513761,0.10830305,92759.0,92741.0,0.00046215]
[1745359514439,0.11908367,92759.0,92741.0,0.00046215]
[1745359514643,0.22642973,92744.0,92741.0,0.00046215]
[1745359514779,0.30161668,92742.0,92741.0,0.00046215]
[1745359514985,0.40991973,92742.0,92741.0,0.00046215]
[1745359515627,0.40991973,92742.0,92741.0,0.00146215]
[1745359516218,0.2156776,92731.0,92695.0,0.0463]
[1745359516412,0.32398065,92731.0,92730.0,0.0011386]
[1745359516635,0.3385215,92731.0,92730.0,0.0011386]
[1745359516932,0.01078609,92712.0,92686.0,0.000426]
[1745359517134,0.21571947,92713.0,92699.0,0.00056439]
[1745359517135,0.01078667,92707.0,92699.0,0.00056439]
[1745359517333,0.01,92742.0,92699.0,0.00056439]
[1745359517535,0.10830305,92737.0,92709.0,0.01078643]
[1745359517757,0.01,92742.0,92721.0,0.01078504]
[1745359517959,0.01,92742.0,92738.0,0.01078306]
[1745359518184,0.003,92742.0,92740.0,0.01454085]
[1745359518380,0.003,92742.0,92741.0,0.32395739]
[1745359518555,0.003,92742.0,92741.0,1.85790124]
[1745359518791,0.003,92742.0,92741.0,1.62770605]
[1745359518990,0.003,92742.0,92741.0,0.11559046]
[1745359519153,0.08596466,92780.0,92741.0,0.12637317]
[1745359519353,0.05044585,92781.0,92767.0,0.01077969]
[1745359519559,0.05044585,92781.0,92780.0,0.21556369]
[1745359519809,0.05044585,92781.0,92780.0,0.11045843]
[1745359520013,0.05090809,92781.0,92765.0,0.19796]
[1745359520225,0.00046224,92781.0,92778.0,0.22634675]
[1745359520412,0.00046224,92781.0,92779.0,0.10830305]
[1745359520759,0.00146224,92781.0,92780.0,0.81876408]
[1745359520887,0.00146224,92781.0,92780.0,0.9173029]
[1745359521089,0.000852,92794.0,92792.0,0.01454085]
[1745359521415,0.00099056,92794.0,92793.0,0.15962676]
[1745359521589,0.00099056,92794.0,92793.0,0.00727876]
[1745359522180,0.00099056,92794.0,92780.0,0.0463]
[1745359522377,0.00099056,92794.0,92781.0,0.32049933]
[1745359522625,0.00099056,92794.0,92780.0,0.05707818]
[1745359522626,0.00199056,92794.0,92780.0,0.0463]
[1745359522873,0.19426771,92793.0,92765.0,0.19796]
[1745359523048,0.19426771,92793.0,92765.0,0.30626305]
[1745359523354,0.19426771,92793.0,92759.0,0.0463]
[1745359523355,0.001,92781.0,92780.0,0.006]
[1745359523550,0.10830305,92781.0,92766.0,0.00727194]
[1745359523755,0.08596466,92771.0,92766.0,0.00727194]
[1745359523952,0.10830305,92770.0,92741.0,0.20870271]
[1745359524204,0.08596466,92782.0,92745.0,0.01078225]
[1745359524498,0.08596466,92772.0,92746.0,0.13774278]
[1745359524702,0.11045906,92771.0,92741.0,0.19792]
[1745359524916,0.11745906,92771.0,92747.0,0.00727767]
[1745359525076,0.11745906,92771.0,92748.0,0.26780608]
[1745359525260,0.11745906,92771.0,92750.0,0.01078167]
[1745359525468,0.00215601,92781.0,92756.0,0.01078097]
[1745359525666,0.001,92772.0,92760.0,0.0107805]
[1745359525889,0.002,92771.0,92761.0,0.13314481]
[1745359526092,0.002,92771.0,92761.0,0.00215581]
[1745359526368,0.001,92772.0,92740.0,0.49668438]
[1745359526594,0.08596466,92769.0,92750.0,0.002]
[1745359526768,0.10484843,92768.0,92737.0,0.01078318]
[1745359526974,0.10484843,92768.0,92742.0,0.00727706]
[1745359527168,0.10484843,92768.0,92761.0,0.004]
[1745359527372,0.01078016,92763.0,92742.0,0.00727706]
[1745359527570,0.08596466,92756.0,92742.0,0.00727706]
[1745359527771,0.10830305,92755.0,92742.0,0.00727706]
[1745359527996,0.10830305,92755.0,92721.0,0.001]
[1745359528204,0.10830305,92755.0,92734.0,0.01078353]
[1745359528413,0.10830305,92754.0,92723.0,0.01454085]
[1745359528609,0.01077911,92772.0,92723.0,0.01454085]
[1745359528610,0.0459,92791.0,92747.0,0.01078201]
[1745359528836,0.0458,92792.0,92724.0,0.41429644]
[1745359528837,0.007,92755.0,92754.0,0.0107812]
[1745359529039,0.007,92755.0,92745.0,0.01454085]
[1745359529241,0.007,92755.0,92749.0,0.01078178]
[1745359529449,0.007,92755.0,92750.0,0.31451867]
[1745359529599,0.007,92755.0,92754.0,0.01454085]
[1745359529798,0.007,92755.0,92754.0,0.1228439]
[1745359530141,0.007,92755.0,92754.0,0.54281714]
[1745359530288,0.007,92755.0,92754.0,0.12430614]
[1745359530506,0.007,92755.0,92754.0,0.40108687]
[1745359530837,0.08596466,92793.0,92775.0,0.01077876]
[1745359530964,0.08596466,92793.0,92755.0,0.24094372]
[1745359530965,0.08596466,92783.0,92755.0,0.24094372]
[1745359531168,0.006,92791.0,92784.0,0.01077772]
[1745359531421,0.08596466,92807.0,92782.0,0.0021553]
[1745359531621,0.08596466,92807.0,92781.0,0.01077806]
[1745359531823,0.08596466,92792.0,92771.0,0.01077923]
[1745359532023,0.000852,92794.0,92777.0,0.22634757]
[1745359532245,0.000852,92794.0,92778.0,0.67827334]
[1745359532432,0.001,92791.0,92787.0,0.01077737]
[1745359532657,0.001,92791.0,92790.0,0.23008131]
[1745359532964,0.001,92791.0,92790.0,0.774212]
[1745359533236,0.001,92791.0,92787.0,0.001]
[1745359533665,0.00099056,92794.0,92787.0,0.001]
[1745359534007,0.00199056,92794.0,92790.0,0.002]
[1745359534412,0.00099056,92794.0,92790.0,0.002]
[1745359534820,0.00199056,92794.0,92790.0,0.002]
[1745359535234,0.00099056,92794.0,92787.0,0.001]
[1745359535419,0.00099056,92794.0,92787.0,0.003]
[1745359535621,0.00299056,92794.0,92787.0,0.003]
[1745359535828,0.00299056,92794.0,92787.0,0.001]
[1745359536225,0.00299056,92794.0,92792.0,0.01454085]
[1745359536449,0.00299056,92794.0,92790.0,0.002]
[1745359536671,0.00099056,92794.0,92788.0,0.0253181]
[1745359536873,0.00099056,92794.0,92790.0,0.01077702]
[1745359537078,0.00299056,92794.0,92789.0,0.01077713]
[1745359537277,0.00299056,92794.0,92790.0,0.01077702]
[1745359537482,0.00099056,92794.0,92791.0,0.2162899]
[1745359537709,0.00099056,92794.0,92793.0,0.23007434]
[1745359537921,0.00299056,92794.0,92793.0,1.09208539]
[1745359538070,0.00299056,92794.0,92793.0,2.27004739]
[1745359538277,0.00099056,92794.0,92793.0,1.9480393]
[1745359538597,0.00399056,92794.0,92793.0,1.9480393]
[1745359538775,0.00399056,92794.0,92793.0,1.4111683]
[1745359539201,0.00399056,92794.0,92793.0,1.1258863]
[1745359539617,0.00499056,92794.0,92793.0,1.1029733]
[1745359539834,0.00199056,92794.0,92793.0,1.0939733]
[1745359540185,0.00399056,92794.0,92793.0,1.0176773]
[1745359540542,0.00299056,92794.0,92793.0,0.6715193]
[1745359540786,0.00099056,92794.0,92793.0,0.3456373]
[1745359541000,0.00199056,92794.0,92793.0,0.5107863]
[1745359541876,0.00099056,92794.0,92793.0,0.5107863]
[1745359541996,0.00199056,92794.0,92793.0,0.5187863]
[1745359542194,0.00099056,92794.0,92793.0,0.5117863]
[1745359542513,0.00199056,92794.0,92793.0,0.14928891]
[1745359542709,0.00199056,92794.0,92793.0,0.01525991]
[1745359542948,0.00099056,92794.0,92793.0,0.00825991]
[1745359543156,0.00299056,92794.0,92793.0,0.009]
[1745359543582,0.00299056,92794.0,92793.0,0.001]
[1745359543877,0.00199056,92794.0,92793.0,0.003]
[1745359544080,0.00299056,92794.0,92793.0,0.003]
[1745359545101,0.00199056,92794.0,92793.0,0.23565285]
[1745359545291,0.00199056,92794.0,92793.0,0.005]
[1745359545648,0.00199056,92794.0,92793.0,0.001]
[1745359546034,0.00199056,92794.0,92793.0,0.004]
[1745359546297,0.11029361,92794.0,92793.0,0.001]
[1745359546707,0.10929361,92794.0,92793.0,0.004]
[1745359546845,0.10929361,92794.0,92793.0,0.001]
[1745359547055,0.11029361,92794.0,92793.0,0.001]
[1745359547302,0.00199056,92794.0,92793.0,0.001]
[1745359547455,0.00099056,92794.0,92793.0,0.001]
[1745359547861,0.00899056,92794.0,92793.0,0.001]
[1745359548116,0.00899056,92794.0,92793.0,0.272775]
[1745359548272,0.00099056,92794.0,92793.0,0.33675213]
[1745359548476,0.00099056,92794.0,92793.0,0.00828713]
[1745359548669,0.00199056,92794.0,92793.0,0.26979913]
[1745359548873,0.00199056,92794.0,92793.0,0.23372013]
[1745359549112,0.00199056,92794.0,92793.0,0.23072013]
[1745359549331,0.00199056,92794.0,92793.0,0.01228713]
[1745359549692,0.00199056,92794.0,92793.0,0.00828713]
[1745359549956,0.00099056,92794.0,92793.0,0.004]
[1745359550255,0.00199056,92794.0,92793.0,0.34453234]
[1745359550416,0.00199056,92794.0,92793.0,0.34237739]
[1745359550764,0.00099056,92794.0,92793.0,1.20493639]
[1745359550972,0.00199056,92794.0,92793.0,1.49181739]
[1745359551163,0.00199056,92794.0,92793.0,1.38322339]
[1745359551363,0.00199056,92794.0,92793.0,1.36468254]
[1745359551545,0.00099056,92794.0,92793.0,1.36468254]
[1745359551758,0.00199056,92794.0,92793.0,0.58455854]
[1745359552138,0.00199056,92794.0,92793.0,0.59584106]
[1745359552367,0.00199056,92794.0,92793.0,0.59184106]
[1745359552578,0.00199056,92794.0,92793.0,0.59684106]
[1745359552838,0.00299056,92794.0,92793.0,0.59684106]
[1745359553312,0.00299056,92794.0,92793.0,0.59784106]
[1745359553525,0.000852,92810.0,92809.0,0.23003719]
[1745359553696,0.000852,92810.0,92809.0,1.53328424]
[1745359553910,0.000852,92810.0,92809.0,1.72963824]
[1745359554158,0.0008516,92832.0,92831.0,0.22998612]
[1745359554317,0.0009907,92832.0,92831.0,1.27678917]
[1745359554521,0.0009907,92832.0,92831.0,2.44196017]
[1745359554729,0.0009907,92832.0,92831.0,4.56314617]
[1745359554938,0.0009907,92832.0,92831.0,5.13900669]
[1745359555133,0.0009907,92832.0,92831.0,4.96696869]
[1745359555301,0.0019907,92832.0,92831.0,3.57852369]
[1745359555717,0.000852,92842.0,92841.0,0.21542206]
[1745359556099,0.000852,92842.0,92841.0,3.09361567]
[1745359556221,0.000852,92842.0,92841.0,3.47411146]
[1745359556420,0.000852,92842.0,92841.0,4.86676846]
[1745359556633,0.000851,92874.0,92847.0,0.22994899]
[1745359556885,0.000851,92874.0,92847.0,0.33124246]
[1745359557077,0.000851,92874.0,92847.0,1.45631646]
[1745359557278,0.000851,92874.0,92847.0,1.88307198]
[1745359557482,0.00041864,92849.0,92848.0,0.01454085]
[1745359557738,0.00041864,92849.0,92848.0,4.0668519]
[1745359557942,0.00041864,92849.0,92848.0,1.2143479]
[1745359558145,0.00041864,92849.0,92848.0,1.22163042]
[1745359558556,0.000851,92874.0,92864.0,0.21536871]
[1745359558764,0.00099105,92865.0,92864.0,2.50662162]
[1745359558914,0.00099105,92865.0,92864.0,0.33821261]
[1745359559135,0.00199105,92865.0,92864.0,0.13012642]
[1745359559697,0.00199105,92865.0,92864.0,2.25137042]
[1745359559698,0.00299105,92865.0,92864.0,2.25137042]
[1745359559903,0.00299105,92865.0,92864.0,2.25136042]
[1745359560361,0.00299105,92865.0,92864.0,1.64651042]
[1745359560578,0.00299105,92865.0,92864.0,1.46580342]
[1745359560987,0.00199105,92865.0,92864.0,1.46580342]
[1745359561209,0.00299105,92865.0,92864.0,1.46880342]
[1745359562192,0.00299105,92865.0,92864.0,1.03603842]
[1745359562394,0.00299105,92865.0,92864.0,0.01228252]
[1745359562594,0.00299105,92865.0,92864.0,0.28024752]
[1745359562797,0.00299105,92865.0,92864.0,0.003]
[1745359563001,0.00399105,92865.0,92864.0,0.006]
[1745359563195,0.01076947,92855.0,92803.0,0.01077551]
[1745359563375,0.08596466,92840.0,92805.0,0.21550563]
[1745359563605,0.08596466,92840.0,92810.0,0.22626807]
[1745359563766,0.10830305,92839.0,92811.0,0.720793]
[1745359563968,0.15740305,92839.0,92815.0,0.01077412]
[1745359564252,0.15740305,92839.0,92817.0,0.01077388]
[1745359564366,0.08596466,92838.0,92818.0,0.400076]
[1745359564569,0.08596466,92838.0,92811.0,1.238984]
[1745359564797,0.08596466,92838.0,92814.0,0.01077423]
[1745359564994,0.0491,92839.0,92821.0,0.01077342]
[1745359565202,0.0491,92839.0,92826.0,0.21545587]
[1745359565561,0.001,92855.0,92850.0,0.01077005]
[1745359565770,0.00299105,92865.0,92851.0,0.00215374]
[1745359565946,0.00299105,92865.0,92845.0,0.02531148]
[1745359566152,0.00299105,92865.0,92846.0,0.25996505]
[1745359566379,0.00299105,92865.0,92847.0,0.165098]
[1745359566578,0.00299105,92865.0,92830.0,0.19656]
[1745359566579,0.08596466,92863.0,92830.0,0.19656]
[1745359566776,0.002,92855.0,92830.0,0.30486305]
[1745359566977,0.002,92855.0,92830.0,0.53108225]
[1745359567181,0.00299105,92865.0,92830.0,0.53108225]
[1745359567182,0.00299105,92865.0,92835.0,0.01454085]
[1745359567313,0.005,92839.0,92838.0,0.01077145]
[1745359567521,0.00299105,92865.0,92839.0,0.01454085]
[1745359567736,0.00299105,92865.0,92864.0,0.01454085]
[1745359567968,0.00299105,92865.0,92864.0,0.327802]
[1745359568169,0.00299105,92865.0,92854.0,0.250951]
[1745359568382,0.00299105,92865.0,92855.0,0.10830305]
[1745359568578,0.00299105,92865.0,92856.0,0.188183]
[1745359568832,0.00299105,92865.0,92841.0,0.01454085]
[1745359569030,0.00299105,92865.0,92843.0,0.01454085]
[1745359569238,0.08596466,92863.0,92843.0,0.10830305]
[1745359569673,0.00499105,92865.0,92845.0,0.01077063]
[1745359569873,0.00499105,92865.0,92844.0,0.191563]
[1745359569874,0.00599105,92865.0,92843.0,0.11907392]
[1745359570020,0.00599105,92865.0,92843.0,0.10830305]
[1745359570255,0.08596466,92854.0,92810.0,0.49668438]
[1745359570658,0.08596466,92854.0,92807.0,0.19656]
[1745359570659,0.001,92863.0,92840.0,0.49668438]
[1745359570909,0.001,92863.0,92841.0,0.77196547]
[1745359571122,0.001,92863.0,92828.0,0.01454085]
[1745359571309,0.001,92863.0,92824.0,0.10830305]
[1745359571571,0.001,92863.0,92830.0,0.49668438]
[1745359571820,0.001,92863.0,92841.0,0.01454085]
[1745359572068,0.01995253,92864.0,92840.0,0.001]
[1745359572309,0.01995253,92864.0,92828.0,0.01454085]
[1745359572310,0.001,92854.0,92843.0,0.01454085]
[1745359572552,0.001,92854.0,92844.0,0.422656]
[1745359572786,0.001,92854.0,92824.0,0.001]
[1745359572787,0.08596466,92853.0,92824.0,0.001]
[1745359572955,0.10830305,92853.0,92824.0,0.001]
[1745359573155,0.10830305,92853.0,92825.0,0.117918]
[1745359573370,0.00997735,92852.0,92824.0,0.001]
[1745359573569,0.00997735,92852.0,92825.0,0.104026]
[1745359573570,0.0496,92850.0,92825.0,0.104026]
[1745359573782,0.08596466,92842.0,92793.0,0.001]
[1745359573981,0.10830305,92841.0,92799.0,0.01077597]
[1745359574201,0.08596466,92830.0,92800.0,0.97650105]
[1745359574433,0.08596466,92830.0,92793.0,0.01134089]
[1745359574434,0.10830305,92829.0,92793.0,0.001]
[1745359574642,0.10830305,92829.0,92807.0,0.01077504]
[1745359574842,0.00997735,92840.0,92812.0,0.01077446]
[1745359575074,0.00997735,92840.0,92820.0,0.49668438]
[1745359575318,0.00997735,92839.0,92821.0,0.224203]
[1745359575534,0.00997735,92839.0,92813.0,0.10830305]
[1745359575535,0.00997735,92839.0,92824.0,0.001]
[1745359575976,0.00997735,92839.0,92825.0,0.00215427]
[1745359576219,0.00997735,92839.0,92821.0,0.0001391]
[1745359576448,0.00997735,92838.0,92821.0,0.0001391]
[1745359577117,0.003,92829.0,92824.0,0.01077307]
[1745359577354,0.001,92840.0,92825.0,0.12123024]
[1745359577560,0.001,92840.0,92837.0,0.01454085]
[1745359577561,0.003,92839.0,92837.0,0.01454085]
[1745359577806,0.003,92839.0,92838.0,0.21758292]
[1745359578055,0.003,92839.0,92838.0,0.4659468]
[1745359578297,0.003,92839.0,92838.0,0.4637829]
[1745359578547,0.052452,92865.0,92839.0,0.01454085]
[1745359578797,0.052452,92865.0,92838.0,0.00727221]
[1745359578798,0.002,92839.0,92838.0,0.00727221]
[1745359579465,0.002,92839.0,92830.0,0.50745675]
[1745359579660,0.002,92839.0,92838.0,0.001]
[1745359579904,0.08596466,92860.0,92838.0,0.001]
[1745359580116,0.08596466,92844.0,92821.0,0.0001391]
[1745359580319,0.002,92839.0,92821.0,0.0001391]
[1745359580497,0.005,92839.0,92838.0,0.001]
[1745359580696,0.003,92839.0,92838.0,0.001]
[1745359581357,0.007,92839.0,92838.0,0.001]
[1745359581470,0.003,92839.0,92838.0,0.001]
[1745359581684,0.006,92839.0,92821.0,0.0001391]
[1745359581885,0.006,92839.0,92821.0,0.0031391]
[1745359582421,0.006,92839.0,92821.0,0.0001391]
[1745359582652,0.013,92839.0,92838.0,0.001]
[1745359583021,0.007,92839.0,92838.0,0.001]
[1745359583257,0.11630305,92839.0,92838.0,0.001]
[1745359583470,0.11630305,92839.0,92821.0,0.0001391]
[1745359583471,0.01077145,92838.0,92821.0,0.0001391]
[1745359583704,0.08596466,92827.0,92821.0,0.0001391]
[1745359583904,0.01077307,92824.0,92821.0,0.0001391]
[1745359584113,0.0107733,92822.0,92776.0,0.01454085]
[1745359584319,0.0107733,92822.0,92774.0,0.01077888]
[1745359584320,0.22627507,92808.0,92774.0,0.01084255]
[1745359584642,0.10830305,92807.0,92774.0,0.01084255]
[1745359585088,0.10830305,92807.0,92771.0,0.0004254]
[1745359585506,0.0971,92797.0,92771.0,0.0004254]
[1745359585737,0.10830305,92796.0,92771.0,0.0004254]
[1745359585941,0.10830305,92796.0,92774.0,0.001]
[1745359586330,0.10830305,92796.0,92771.0,0.0004254]
[1745359586570,0.10830305,92796.0,92774.0,0.003]
[1745359587209,0.10830305,92796.0,92774.0,0.00313856]
[1745359587388,0.11130305,92796.0,92774.0,0.00313856]
[1745359587628,0.02084031,92795.0,92774.0,0.00313856]
[1745359587867,0.10830305,92794.0,92774.0,0.00313856]
[1745359588078,0.10830305,92794.0,92774.0,0.00413856]
[1745359588490,0.10830305,92794.0,92774.0,0.00313856]
[1745359588944,0.10830305,92794.0,92774.0,0.00413856]
[1745359589063,0.10930305,92794.0,92774.0,0.00413856]
[1745359589276,0.10930305,92794.0,92774.0,0.00013856]
[1745359589496,0.21553981,92791.0,92774.0,0.00113856]
[1745359589711,0.0107783,92779.0,92774.0,0.00113856]
[1745359589913,0.01077888,92774.0,92771.0,0.0004254]
[1745359590124,0.0469,92763.0,92731.0,0.01078388]
[1745359590321,0.10830305,92762.0,92732.0,0.01294025]
[1745359590570,0.10830305,92762.0,92733.0,0.22645542]
[1745359590825,0.11633798,92762.0,92736.0,0.0004245]
[1745359591782,0.11733798,92762.0,92736.0,0.0004245]
[1745359591998,0.0164238,92761.0,92736.0,0.0004245]
[1745359592181,0.10830305,92760.0,92736.0,0.0004245]
[1745359592378,0.00803493,92762.0,92740.0,0.01078283]
[1745359592591,0.001,92762.0,92745.0,0.01078225]
[1745359592798,0.001,92762.0,92746.0,0.21047]
[1745359592999,0.002,92762.0,92742.0,0.0107826]
[1745359593209,0.001,92762.0,92742.0,0.0107826]
[1745359593421,0.001,92762.0,92743.0,0.67653896]
[1745359593646,0.002,92762.0,92744.0,0.01078236]
[1745359593860,0.19612,92776.0,92740.0,0.49668438]
[1745359594076,0.001,92762.0,92742.0,0.001]
[1745359594300,0.002,92760.0,92742.0,0.001]
[1745359594516,0.10830305,92759.0,92742.0,0.001]
[1745359595259,0.10830305,92759.0,92737.0,0.0004254]
[1745359595260,0.10830305,92755.0,92737.0,0.0004254]
[1745359596211,0.10830305,92755.0,92742.0,0.001]
[1745359596212,0.0590812,92754.0,92742.0,0.001]
[1745359596436,0.10830305,92753.0,92742.0,0.001]
[1745359596556,0.10830305,92753.0,92737.0,0.0004254]
[1745359596967,0.01078283,92740.0,92737.0,0.0014254]
[1745359597219,0.10830305,92739.0,92737.0,0.0004254]
[1745359597386,0.0469,92752.0,92730.0,0.0004258]
[1745359597387,0.0483,92737.0,92730.0,0.0004258]
[1745359597596,0.10830305,92736.0,92730.0,0.0004258]
[1745359598385,0.10830305,92736.0,92730.0,0.00088804]
[1745359599035,0.11230305,92736.0,92730.0,0.00188804]
[1745359599441,0.10830305,92731.0,92730.0,0.00188804]
[1745359599797,0.10830305,92731.0,92728.0,0.0004254]
[1745359599798,0.33476453,92731.0,92728.0,0.0004254]
[1745359599998,0.01078469,92724.0,92699.0,0.0004255]
[1745359600226,0.10830305,92717.0,92716.0,0.00056469]
[1745359603155,0.12530305,92717.0,92716.0,0.00156469]
[1745359603307,0.11730305,92717.0,92716.0,0.00156469]
[1745359603506,0.11730305,92717.0,92716.0,0.00256469]
[1745359603507,0.34901322,92717.0,92716.0,0.00256469]
[1745359603917,0.34201322,92717.0,92716.0,0.00256469]
[1745359604368,0.35101322,92717.0,92716.0,0.00256469]
[1745359604884,0.40622553,92717.0,92716.0,0.00056469]
[1745359605181,0.33501322,92717.0,92716.0,0.00056469]
[1745359605594,0.21573122,92708.0,92699.0,0.0004255]
[1745359605734,0.011,92717.0,92699.0,0.0004255]
[1745359605973,0.21572072,92713.0,92699.0,0.0004255]
[1745359606206,0.21574739,92702.0,92699.0,0.0004255]
[1745359606434,0.10830305,92701.0,92699.0,0.0004255]
[1745359606645,0.10830305,92701.0,92699.0,0.0014255]
[1745359606918,0.21574973,92700.0,92699.0,0.0014255]
[1745359607127,0.32405278,92700.0,92699.0,0.0014255]
[1745359607542,0.10830305,92700.0,92699.0,0.0014255]
[1745359607956,0.11530305,92700.0,92699.0,0.0004255]
[1745359608161,0.11530305,92700.0,92699.0,0.0014255]
[1745359608569,0.11530305,92700.0,92699.0,0.0004255]
[1745359608766,0.12230305,92700.0,92699.0,0.0014255]
[1745359611359,0.014,92700.0,92699.0,0.0014255]
[1745359611763,0.12230305,92700.0,92699.0,0.0014255]
[1745359613348,0.014,92700.0,92699.0,0.0014255]
[1745359618470,0.12230305,92700.0,92699.0,0.0014255]
[1745359619762,0.12230305,92700.0,92699.0,0.1252694]
[1745359619763,0.014,92700.0,92699.0,0.1252694]
[1745359619967,0.014,92700.0,92699.0,0.13258384]
[1745359620177,0.014,92700.0,92699.0,1.69928199]
[1745359620385,0.014,92700.0,92699.0,0.00973994]
[1745359624031,0.001,92700.0,92699.0,0.54561642]
[1745359624174,0.001,92717.0,92699.0,0.54561642]
[1745359624175,0.001,92717.0,92716.0,0.21571249]
[1745359624375,0.001,92717.0,92716.0,0.2275239]
[1745359624624,0.001,92717.0,92716.0,0.1228439]
[1745359624831,0.001,92717.0,92716.0,0.13232248]
[1745359625082,0.001,92717.0,92716.0,1.90812047]
[1745359625295,0.001,92717.0,92716.0,0.24624587]
[1745359625568,0.002,92717.0,92716.0,0.24624587]
[1745359626137,0.08681506,92754.0,92744.0,0.21564698]
[1745359626347,0.08695402,92754.0,92745.0,0.00215624]
[1745359626556,0.00098936,92754.0,92751.0,0.01078155]
[1745359626754,0.00098936,92754.0,92752.0,0.23016962]
[1745359626952,0.00083976,92755.0,92754.0,0.23016497]
[1745359627276,0.00083976,92755.0,92754.0,1.43378794]
[1745359627476,0.00083976,92755.0,92754.0,1.49140794]
[1745359627678,0.00083976,92755.0,92754.0,1.59971099]
[1745359627885,0.08596466,92805.0,92784.0,0.22633053]
[1745359628083,0.0864289,92805.0,92795.0,0.49676853]
[1745359628244,0.0864289,92805.0,92799.0,0.01077597]
[1745359628443,0.0864289,92805.0,92795.0,0.50754497]
[1745359628738,0.0864289,92805.0,92796.0,0.494169]
[1745359628913,0.00046424,92805.0,92802.0,0.21551258]
[1745359629162,0.00046424,92805.0,92804.0,0.2300488]
[1745359629362,0.00646424,92805.0,92795.0,0.50854497]
[1745359629510,0.00646424,92805.0,92795.0,0.001]
[1745359629715,0.00046424,92805.0,92771.0,0.02532008]
[1745359629977,0.19426771,92804.0,92781.0,0.01077806]
[1745359630145,0.19426771,92804.0,92778.0,0.01077841]
[1745359630146,0.00546424,92805.0,92802.0,0.001]
[1745359630753,0.00846424,92805.0,92802.0,0.001]
[1745359630959,0.19426771,92804.0,92802.0,0.001]
[1745359631368,0.19426771,92804.0,92784.0,0.001]
[1745359631589,0.19426771,92804.0,92802.0,0.001]
[1745359631904,0.19426771,92804.0,92771.0,0.005]
[1745359631905,0.01077655,92794.0,92771.0,0.005]
[1745359632108,0.2155236,92798.0,92750.0,0.0455]
[1745359632109,0.10830305,92793.0,92750.0,0.0455]
[1745359632308,0.10830305,92793.0,92754.0,0.0107812]
[1745359632684,0.10830305,92793.0,92749.0,0.01078178]
[1745359632685,0.10830305,92773.0,92724.0,0.21569271]
[1745359632894,0.0494,92771.0,92732.0,0.01057011]
[1745359633099,0.10830305,92770.0,92732.0,0.01057011]
[1745359633435,0.10830305,92770.0,92732.0,0.21567512]
[1745359633646,0.10830305,92770.0,92732.0,0.01068834]
[1745359633862,0.10830305,92770.0,92724.0,0.21569384]
[1745359634109,0.01078039,92761.0,92707.0,0.21573139]
[1745359634316,0.10830305,92757.0,92744.0,0.00113896]
[1745359634756,0.10830305,92757.0,92744.0,0.00213896]
[1745359635308,0.10830305,92757.0,92744.0,0.00113896]
[1745359635514,0.11930305,92757.0,92744.0,0.00313896]
[1745359635915,0.11430305,92757.0,92744.0,0.00213896]
[1745359636394,0.11930305,92757.0,92744.0,0.00313896]
[1745359637312,0.011,92757.0,92744.0,0.00313896]
[1745359637509,0.011,92757.0,92749.0,0.01078178]
[1745359637715,0.011,92757.0,92750.0,0.02532252]
[1745359637944,0.011,92757.0,92750.0,0.282003]
[1745359638257,0.011,92757.0,92744.0,0.00313896]
[1745359638434,0.01077772,92784.0,92744.0,0.00113896]
[1745359638572,0.001,92757.0,92749.0,0.01078178]
[1745359638775,0.001,92757.0,92750.0,0.00215609]
[1745359638979,0.006,92757.0,92756.0,0.01454085]
[1745359639205,0.006,92757.0,92756.0,0.4630619]
[1745359639412,0.006,92757.0,92756.0,0.2852699]
[1745359640075,0.005,92757.0,92756.0,0.2852699]
[1745359640486,0.009,92757.0,92756.0,0.2852699]
[1745359640856,0.004,92757.0,92756.0,0.2852699]
[1745359641294,0.35544,92796.0,92772.0,0.01077911]
[1745359641578,0.08596466,92794.0,92766.0,0.01077981]
[1745359641818,0.10830305,92793.0,92764.0,0.01454085]
[1745359642138,0.10830305,92793.0,92763.0,0.01454085]
[1745359642506,0.10876729,92793.0,92763.0,0.01454085]
[1745359642638,0.10876729,92793.0,92764.0,0.121329]
[1745359642841,0.10876729,92793.0,92765.0,0.01077992]
[1745359643314,0.10876729,92793.0,92761.0,0.22638768]
[1745359643315,0.00046424,92793.0,92779.0,0.22634351]
[1745359643491,0.00046424,92793.0,92785.0,0.01454085]
[1745359643691,0.00246424,92793.0,92777.0,0.21557043]
[1745359643892,0.00246424,92793.0,92778.0,0.01454085]
[1745359644131,0.00246424,92793.0,92778.0,0.02531926]
[1745359644325,0.00346424,92793.0,92777.0,0.01454085]
[1745359644502,0.00146424,92793.0,92777.0,0.01454085]
[1745359644700,0.00146424,92793.0,92779.0,0.0117783]
[1745359644905,0.00646424,92793.0,92780.0,0.01077818]
[1745359645092,0.00546424,92793.0,92779.0,0.0117783]
[1745359645294,0.00446424,92793.0,92781.0,0.00215523]
[1745359645496,0.00446424,92793.0,92790.0,0.01077702]
[1745359645699,0.00446424,92793.0,92791.0,0.00215507]
[1745359645700,0.00546424,92793.0,92791.0,0.00215507]
[1745359646135,0.00546424,92793.0,92780.0,0.49676853]
[1745359646345,0.00546424,92793.0,92777.0,0.01077853]
[1745359646881,0.00546424,92793.0,92776.0,0.01077864]
[1745359647010,0.00946424,92793.0,92778.0,0.01177841]
[1745359647214,0.00546424,92793.0,92780.0,0.01077818]
[1745359647457,0.01046424,92793.0,92781.0,0.001]
[1745359647863,0.00946424,92793.0,92778.0,0.001]